bitfinex/quotes_SOLUSD_20240530
["timestamp","ask_amount","ask_price","bid_price","bid_amount"]
[1717078446200,2.19,168.95,168.92,60.0]
[1717078446418,2.1901,168.94,168.93,45.0]
[1717078446907,2.19,168.95,168.93,45.0]
[1717078447406,2.1899,168.96,168.93,45.0]
[1717078447783,2.1897,168.98,168.96,60.0]
[1717078448001,11.34588948,169.03,168.96,60.0]
[1717078448002,4.77888948,169.03,168.96,60.0]
[1717078448301,6.5667,169.04,168.96,60.0]
[1717078448497,2.1895,168.99,168.97,45.0]
[1717078448693,2.1893,169.0,168.97,45.0]
[1717078449000,2.1894,168.99,168.98,60.0]
[1717078449502,2.1896,168.98,168.97,45.0]
[1717078449676,2.1898,168.97,168.94,60.0]
[1717078449881,2.1898,168.97,168.95,45.0]
[1717078450886,2.1898,168.97,168.94,60.0]
[1717078451588,2.1898,168.97,168.92,62.1903]
[1717078451904,2.1898,168.96,168.92,60.0]
[1717078452203,2.1899,168.96,168.93,45.0]
[1717078452504,4.3791,168.99,168.93,45.0]
[1717078452700,10.9475,168.99,168.92,45.0]
[1717078452902,2.19,168.95,168.91,105.0]
[1717078453092,2.19,168.95,168.91,60.0]
[1717078453293,2.19,168.95,168.93,60.0]
[1717078453708,2.1899,168.96,168.91,62.1905]
[1717078454006,2.19,168.95,168.9,22.3606]
[1717078454587,2.1898,168.96,168.91,62.1904]
[1717078455102,2.19,168.95,168.91,60.0]
[1717078455295,2.19,168.95,168.92,45.0]
[1717078455627,10.9475,169.02,168.92,45.0]
[1717078455787,2.1902,168.93,168.89,62.1907]
[1717078455989,2.1902,168.93,168.9,45.0]
[1717078457101,2.1903,168.93,168.9,45.0]
[1717078458593,2.1904,168.92,168.9,60.0]
[1717078458910,2.1902,168.93,168.9,60.0]
[1717078459112,2.1902,168.93,168.88,2.1909]
[1717078459281,2.1904,168.92,168.87,62.1909]
[1717078459892,2.1904,168.92,168.88,45.0]
[1717078461105,2.1904,168.92,168.89,60.0]
[1717078461611,2.1904,168.92,168.9,60.0]
[1717078462211,4.38,168.95,168.9,60.0]
[1717078462212,2.1903,168.93,168.9,60.0]
[1717078462405,2.1903,168.93,168.92,6.73]
[1717078462607,2.1904,168.92,168.87,62.1909]
[1717078462807,2.1904,168.92,168.91,6.73]
[1717078463133,2.1905,168.91,168.88,60.0]
[1717078463407,2.1905,168.91,168.86,2.1911]
[1717078463408,2.1905,168.91,168.9,6.73]
[1717078463610,2.1906,168.9,168.88,6.73]
[1717078463907,2.1905,168.91,168.86,62.191]
[1717078464117,2.1905,168.91,168.89,6.73]
[1717078464292,2.19,168.95,168.92,60.0]
[1717078464495,4.3794,168.97,168.94,6.73]
[1717078464699,2.1901,168.94,168.93,6.73]
[1717078464898,2.1901,168.94,168.9,60.0]
[1717078465097,2.1901,168.94,168.93,6.73]
[1717078465293,2.1901,168.94,168.92,6.73]
[1717078465493,2.1901,168.94,168.91,45.0]
[1717078465807,2.19,168.95,168.93,6.73]
[1717078466191,2.1901,168.94,168.93,6.73]
[1717078466592,2.1901,168.94,168.91,45.0]
[1717078466807,2.1901,168.94,168.93,6.73]
[1717078466997,2.1901,168.94,168.91,45.0]
[1717078467202,2.1901,168.94,168.93,6.73]
[1717078467401,2.1901,168.94,168.91,45.0]
[1717078467691,2.1901,168.94,168.93,6.73]
[1717078470123,2.19,168.95,168.93,6.73]
[1717078470318,4.3794,168.97,168.93,6.73]
[1717078470319,2.1901,168.94,168.93,6.73]
[1717078470647,2.19,168.95,168.92,60.0]
[1717078470800,2.19,168.95,168.94,6.73]
[1717078472003,2.1901,168.94,168.92,60.0]
[1717078472205,2.1901,168.94,168.93,6.73]
[1717078472406,2.19,168.95,168.94,60.0]
[1717078472607,2.19,168.95,168.94,66.73]
[1717078472808,2.19,168.95,168.94,6.73]
[1717078473339,2.1902,168.94,168.93,6.73]
[1717078473633,2.1902,168.94,168.93,51.73]
[1717078473930,2.1902,168.94,168.93,45.0]
[1717078474108,2.1902,168.94,168.93,51.73]
[1717078474724,4.3795,168.97,168.93,51.73]
[1717078474725,2.19,168.95,168.93,51.73]
[1717078475031,2.19,168.95,168.94,6.73]
[1717078475207,2.19,168.95,168.94,66.73]
[1717078475722,2.19,168.95,168.94,60.0]
[1717078476031,2.19,168.95,168.94,6.73]
[1717078476603,2.19,168.95,168.93,51.73]
[1717078476917,2.19,168.95,168.94,6.73]
[1717078477115,2.1901,168.94,168.9,60.0]
[1717078477429,2.1901,168.94,168.93,6.73]
[1717078477627,2.1902,168.93,168.92,6.73]
[1717078478017,2.1902,168.93,168.9,60.0]
[1717078478217,2.1901,168.94,168.92,6.73]
[1717078479139,2.1902,168.93,168.92,6.73]
[1717078480138,2.1902,168.93,168.92,66.73]
[1717078480327,2.1901,168.94,168.92,66.73]
[1717078480513,2.1901,168.94,168.93,51.73]
[1717078481132,4.3793,168.98,168.94,60.0]
[1717078481315,2.1901,168.94,168.93,51.73]
[1717078481723,2.1902,168.93,168.9,60.0]
[1717078481940,2.1902,168.93,168.92,6.73]
[1717078482135,2.1901,168.94,168.92,66.73]
[1717078483039,2.1902,168.93,168.92,66.73]
[1717078484223,2.1903,168.92,168.89,60.0]
[1717078484536,2.1903,168.92,168.91,6.73]
[1717078484930,2.1906,168.91,168.87,60.0]
[1717078485134,4.3804,168.94,168.89,6.73]
[1717078485311,2.1906,168.91,168.89,6.73]
[1717078485509,2.1906,168.9,168.88,6.73]
[1717078485825,2.1904,168.92,168.89,60.0]
[1717078486147,2.1904,168.92,168.91,6.73]
[1717078486445,2.1904,168.92,168.87,60.0]
[1717078486446,2.1905,168.91,168.9,6.73]
[1717078488234,2.1909,168.88,168.87,60.0]
[1717078488439,2.1907,168.9,168.87,111.73]
[1717078488737,2.1905,168.91,168.88,45.0]
[1717078488935,2.1906,168.9,168.88,51.73]
[1717078489313,2.1906,168.9,168.88,45.0]
[1717078489709,2.1906,168.9,168.88,51.73]
[1717078490433,2.1906,168.9,168.89,6.73]
[1717078490648,2.1905,168.91,168.89,6.73]
[1717078490930,2.1905,168.91,168.88,45.0]
[1717078491141,2.1905,168.91,168.89,6.73]
[1717078494043,2.1905,168.91,168.87,45.0]
[1717078494240,2.1905,168.91,168.89,6.73]
[1717078494619,2.1905,168.91,168.87,107.191]
[1717078494818,2.1905,168.91,168.87,47.191]
[1717078495020,2.1905,168.91,168.89,6.73]
[1717078495324,2.1905,168.91,168.88,60.0]
[1717078495525,2.1905,168.91,168.89,6.73]
[1717078495728,2.1905,168.91,168.9,6.73]
[1717078495917,2.1906,168.9,168.88,60.0]
[1717078496135,10.9509,168.94,168.89,6.73]
[1717078496436,2.1906,168.9,168.89,6.73]
[1717078496628,2.1906,168.9,168.87,45.0]
[1717078496629,2.1906,168.9,168.88,6.73]
[1717078496829,2.1906,168.9,168.87,51.73]
[1717078497033,2.1906,168.9,168.87,45.0]
[1717078497344,2.1906,168.9,168.86,3.07733527]
[1717078497545,2.1909,168.88,168.86,3.07733527]
[1717078497755,6.41847107,168.94,168.86,3.07733527]
[1717078497756,2.191,168.87,168.86,3.07733527]
[1717078498042,2.191,168.87,168.85,3.07733527]
[1717078500043,2.1911,168.86,168.85,3.07733527]
[1717078500338,2.1915,168.84,168.82,66.15467054]
[1717078500547,2.1915,168.84,168.82,72.88467054]
[1717078500729,2.1912,168.85,168.82,72.88467054]
[1717078500933,2.1912,168.85,168.83,6.73]
[1717078501234,15.1319,168.88,168.81,6.15467054]
[1717078501539,4.3822,168.87,168.83,6.73]
[1717078501745,2.1913,168.85,168.83,6.73]
[1717078501931,39.29960735,168.95,168.83,62.1915]
[1717078502137,4.3812,168.91,168.86,6.73]
[1717078502331,4.3813,168.9,168.83,62.1915]
[1717078502532,4.3813,168.9,168.82,6.15467054]
[1717078502533,4.38,168.95,168.9,60.0]
[1717078502853,2.1901,168.94,168.9,60.0]
[1717078503057,2.1898,168.97,168.94,60.0]
[1717078503421,2.1896,168.98,168.96,6.73]
[1717078503621,10.9507,169.02,169.01,60.0]
[1717078503834,10.9507,169.02,169.01,66.73]
[1717078504248,2.1889,169.04,169.01,60.0]
[1717078504466,39.29960735,169.12,169.02,6.73]
[1717078504627,39.29960735,169.12,169.03,66.73]
[1717078504628,13.1275,169.11,169.03,66.73]
[1717078504821,2.1881,169.09,169.06,66.73]
[1717078505030,2.188,169.1,169.08,6.73]
[1717078505237,8.7525,169.11,169.09,0.32049212]
[1717078505435,6.5646,169.11,169.1,60.0]
[1717078505670,6.5646,169.11,169.1,105.0]
[1717078505833,6.5646,169.11,169.1,60.0]
[1717078506029,2.1874,169.15,169.12,60.0]
[1717078506522,2.1872,169.16,169.12,60.0]
[1717078507153,6.5609,169.19,169.09,60.0]
[1717078507355,2.1878,169.12,169.09,60.0]
[1717078507654,2.1876,169.14,169.09,60.0]
[1717078508045,2.1876,169.13,169.09,60.0]
[1717078508249,2.1878,169.12,169.01,10.9457]
[1717078508553,8.7494,169.16,169.05,60.0]
[1717078508733,2.1883,169.09,169.07,60.0]
[1717078508928,6.5598,169.18,169.1,60.0]
[1717078508929,2.1877,169.13,169.1,60.0]
[1717078509132,2.1875,169.14,169.12,60.0]
[1717078511037,2.1874,169.15,169.14,60.0]
[1717078511657,2.1875,169.14,169.1,60.0]
[1717078511827,4.3743,169.17,169.11,45.0]
[1717078512027,37.25885162,169.22,169.08,60.0]
[1717078512028,2.188,169.1,169.08,60.0]
[1717078512249,2.1881,169.09,169.08,60.0]
[1717078512856,2.1883,169.08,169.06,60.0]
[1717078513178,2.1885,169.06,169.04,60.0]
[1717078513537,2.1887,169.05,169.04,60.0]
[1717078513855,2.1885,169.06,169.04,60.0]
[1717078514057,2.1887,169.05,169.04,60.0]
[1717078514444,2.1886,169.06,169.04,60.0]
[1717078515152,2.1887,169.05,169.04,60.0]
[1717078517167,1.76990114,169.15,169.01,60.0]
[1717078517335,2.1889,169.03,169.01,60.0]
[1717078517537,2.189,169.02,169.01,60.0]
[1717078518532,2.189,169.02,169.01,105.0]
[1717078519240,2.1887,169.05,169.03,60.0]
[1717078519466,2.1886,169.06,169.05,60.0]
[1717078519780,4.3758,169.11,169.05,105.0]
[1717078519967,6.564,169.11,169.03,60.0]
[1717078520284,2.1887,169.05,169.04,45.0]
[1717078520464,2.1885,169.06,169.05,60.0]
[1717078520866,2.1885,169.06,169.04,105.0]
[1717078521183,2.1887,169.05,169.04,105.0]
[1717078521383,2.1884,169.07,169.06,60.0]
[1717078521765,8.7507,169.13,169.09,60.0]
[1717078522088,2.1879,169.11,169.09,60.0]
[1717078522774,2.1882,169.09,169.07,60.0]
[1717078522991,6.02638982,169.13,169.07,60.0]
[1717078522992,2.1883,169.08,169.07,60.0]
[1717078523152,2.1883,169.08,169.07,105.0]
[1717078523351,2.1883,169.08,168.98,4.3791]
[1717078523352,2.1885,169.06,169.05,60.0]
[1717078523582,4.3761,169.1,169.05,60.0]
[1717078524082,2.1881,169.09,169.08,60.0]
[1717078525581,2.1881,169.09,169.08,105.0]
[1717078527062,2.1881,169.09,169.08,60.0]
[1717078527567,2.1881,169.09,169.08,105.0]
[1717078529179,15.312,169.15,169.13,60.0]
[1717078529480,6.5626,169.14,169.13,60.0]
[1717078530588,4.70784194,169.19,169.16,60.0]
[1717078530881,2.1871,169.17,169.16,60.0]
[1717078531293,2.1871,169.17,169.16,105.0]
[1717078531670,2.1873,169.16,169.14,60.0]
[1717078531869,2.1873,169.16,169.15,45.0]
[1717078534579,2.1871,169.18,169.16,60.0]
[1717078535460,6.5598,169.22,169.15,45.0]
[1717078535655,15.3058,169.22,169.15,45.0]
[1717078535861,4.3733,169.21,169.15,45.0]
[1717078536060,4.3733,169.21,169.16,60.0]
[1717078536272,2.1873,169.16,169.13,60.0]
[1717078536468,2.1873,169.16,169.15,60.0]
[1717078536674,2.1871,169.17,169.15,60.0]
[1717078536879,2.1872,169.16,169.15,60.0]
[1717078537068,2.1872,169.16,169.13,60.0]
[1717078537584,2.1872,169.16,169.15,60.0]
[1717078537792,2.1872,169.16,169.15,105.0]
[1717078538281,2.1871,169.17,169.15,105.0]
[1717078538482,2.1872,169.16,169.15,105.0]
[1717078538675,2.1871,169.18,169.17,60.0]
[1717078539586,2.1872,169.17,169.15,45.0]
[1717078539891,2.1872,169.17,169.16,105.0]
[1717078540088,2.187,169.18,169.16,105.0]
[1717078541465,2.1868,169.2,169.19,60.0]
[1717078542670,2.187,169.18,169.17,60.0]
[1717078542881,2.1872,169.16,169.15,60.0]
[1717078543080,2.1871,169.17,169.15,60.0]
[1717078543272,2.1872,169.16,169.15,60.0]
[1717078543473,2.187,169.18,169.17,60.0]
[1717078546680,2.187,169.18,169.17,105.0]
[1717078547191,2.187,169.18,169.17,60.0]
[1717078549892,2.187,169.18,169.17,105.0]
[1717078550699,12.58788788,169.22,169.2,60.0]
[1717078550879,2.1866,169.21,169.2,60.0]
[1717078552892,4.62200815,169.23,169.15,60.0]
[1717078553072,4.3737,169.2,169.17,60.0]
[1717078553398,2.187,169.18,169.17,60.0]
[1717078553901,10.9339,169.2,169.15,60.0]
[1717078554101,2.1872,169.16,169.15,60.0]
[1717078554483,2.1872,169.16,169.15,105.0]
[1717078554897,2.1872,169.17,169.15,105.0]
[1717078555206,2.1872,169.17,169.15,45.0]
[1717078555388,2.1872,169.17,169.16,45.0]
[1717078555704,2.1872,169.17,169.16,105.0]
[1717078560107,4.3737,169.2,169.19,60.0]
[1717078560308,4.3737,169.2,169.19,105.0]
[1717078560494,6.5604,169.2,169.19,105.0]
[1717078561891,2.1867,169.2,169.19,105.0]
[1717078562610,6.5602,169.2,169.19,105.0]
[1717078563103,2.1867,169.2,169.19,105.0]
[1717078563505,6.5587,169.24,169.23,60.0]
[1717078563708,2.1862,169.24,169.23,60.0]
[1717078564411,2.1862,169.24,169.19,45.0]
[1717078564412,8.21578564,169.3,169.29,60.0]
[1717078564587,8.21578564,169.3,169.29,105.0]
[1717078564791,6.03038564,169.3,169.29,105.0]
[1717078565188,2.1848,169.35,169.34,60.0]
[1717078565811,2.1854,169.3,169.29,105.0]
[1717078566009,2.1854,169.3,169.29,60.0]
[1717078566186,2.1854,169.3,169.19,35.67]
[1717078566187,4.3703,169.33,169.26,60.0]
[1717078566388,2.1857,169.28,169.27,45.0]
[1717078566590,2.1856,169.29,169.28,60.0]
[1717078566906,2.1861,169.25,169.24,60.0]
[1717078567089,4.3709,169.31,169.26,60.0]
[1717078567290,10.9248,169.34,169.3,60.0]
[1717078567513,8.7402,169.34,169.3,60.0]
[1717078567714,3.10368871,169.36,169.34,60.0]
[1717078568030,2.1852,169.32,169.25,19.9561]
[1717078568312,2.1848,169.35,169.34,60.0]
[1717078568535,2.1848,169.35,169.34,90.0]
[1717078569194,0.8250969,169.37,169.36,77.77]
[1717078569410,0.8250969,169.37,169.36,60.0]
[1717078569592,0.8250969,169.37,169.36,90.0]
[1717078569791,3.0095969,169.37,169.36,90.0]
[1717078570222,3.0095969,169.37,169.36,30.0]
[1717078570404,3.0095969,169.37,169.36,90.0]
[1717078571395,0.8250969,169.37,169.36,90.0]
[1717078571605,3.0095969,169.37,169.36,90.0]
[1717078571999,3.0095969,169.37,169.36,30.0]
[1717078572498,13.9322969,169.37,169.36,30.0]
[1717078572696,22.6704969,169.37,169.36,30.0]
[1717078573625,2.185,169.33,169.32,60.0]
[1717078574218,0.8250969,169.37,169.27,60.0]
[1717078574532,2.1857,169.28,169.27,60.0]
[1717078574711,0.8250969,169.37,169.27,90.0]
[1717078575026,2.1853,169.31,169.3,60.0]
[1717078575222,2.1855,169.29,169.28,60.0]
[1717078576131,2.1858,169.27,169.26,60.0]
[1717078576428,2.1854,169.3,169.29,60.0]
[1717078577004,4.3704,169.32,169.27,60.0]
[1717078577421,0.8250969,169.37,169.24,60.0]
[1717078577725,2.1859,169.27,169.26,60.0]
[1717078578108,2.186,169.26,169.24,60.0]
[1717078578507,2.1861,169.25,169.24,60.0]
[1717078578832,2.1863,169.23,169.22,60.0]
[1717078580030,2.1866,169.21,169.2,60.0]
[1717078580535,2.1863,169.24,169.23,60.0]
[1717078581248,6.5581,169.31,169.21,60.0]
[1717078581249,2.1864,169.23,169.21,60.0]
[1717078581531,2.1865,169.22,169.21,60.0]
[1717078582213,2.1867,169.21,169.19,60.0]
[1717078582413,4.3725,169.24,169.19,60.0]
[1717078582615,8.7439,169.26,169.22,60.0]
[1717078582822,2.1866,169.22,169.2,60.0]
[1717078583215,8.7439,169.26,169.14,53.44]
[1717078583216,2.1863,169.23,169.22,60.0]
[1717078583826,4.3717,169.27,169.22,60.0]
[1717078583827,2.1862,169.25,169.22,60.0]
[1717078584014,2.1863,169.24,169.22,60.0]
[1717078584211,2.1861,169.25,169.24,60.0]
[1717078584403,2.186,169.26,169.24,60.0]
[1717078584604,2.1861,169.25,169.24,60.0]
[1717078584804,2.1863,169.23,169.22,60.0]
[1717078585930,2.1862,169.24,169.22,60.0]
[1717078586127,2.1863,169.23,169.22,60.0]
[1717078586828,4.3719,169.27,169.23,60.0]
[1717078587016,2.1862,169.24,169.23,60.0]
[1717078587218,6.02729772,169.34,169.26,60.0]
[1717078587419,26.78860162,169.36,169.28,60.0]
[1717078587730,2.1855,169.29,169.28,60.0]
[1717078587906,2.1853,169.31,169.3,60.0]
[1717078588113,4.3696,169.35,169.32,60.0]
[1717078588531,2.185,169.33,169.32,60.0]
[1717078588838,2.1854,169.3,169.29,60.0]
[1717078589017,4.3699,169.34,169.31,60.0]
[1717078589220,2.1852,169.32,169.31,60.0]
[1717078589629,2.1855,169.29,169.28,60.0]
[1717078590310,6.555,169.34,169.26,60.0]
[1717078590311,2.1857,169.28,169.26,60.0]
[1717078590740,2.1858,169.27,169.26,60.0]
[1717078591243,2.186,169.26,169.24,60.0]
[1717078591428,8.7417,169.31,169.24,60.0]
[1717078591738,2.1858,169.27,169.26,60.0]
[1717078591940,2.1859,169.26,169.24,60.0]
[1717078592320,2.1859,169.27,169.26,60.0]
[1717078593826,8.7417,169.31,169.28,60.0]
[1717078594124,2.1855,169.29,169.28,60.0]
[1717078594329,13.1097,169.34,169.29,60.0]
[1717078594520,2.1854,169.31,169.29,60.0]
[1717078594715,7.3804969,169.37,169.31,60.0]
[1717078594939,2.1852,169.32,169.31,60.0]
[1717078595244,2.1854,169.3,169.29,60.0]
[1717078595841,2.1853,169.31,169.29,60.0]
[1717078596031,2.1854,169.3,169.29,60.0]
[1717078596734,0.8250969,169.37,169.27,60.0]
[1717078596941,2.1859,169.27,169.25,60.0]
[1717078597117,2.1858,169.27,169.25,60.0]
[1717078598147,2.1859,169.27,169.25,60.0]
[1717078598443,2.1859,169.26,169.25,60.0]
[1717078599246,2.1861,169.25,169.23,60.0]
[1717078600232,6.5569,169.29,169.23,60.0]
[1717078600431,4.3717,169.27,169.23,60.0]
[1717078600637,2.1864,169.23,169.21,60.0]
[1717078600835,2.1861,169.25,169.23,60.0]
[1717078601045,15.2994,169.29,169.23,60.0]
[1717078601046,2.186,169.26,169.23,60.0]
[1717078601351,2.1861,169.25,169.23,60.0]
[1717078601753,2.1862,169.24,169.23,60.0]
[1717078602243,2.1861,169.25,169.23,60.0]
[1717078602740,2.1863,169.23,169.22,60.0]
[1717078602948,2.1862,169.24,169.22,60.0]
[1717078604033,4.3711,169.3,169.27,60.0]
[1717078604219,4.3711,169.3,169.25,60.0]
[1717078604423,2.1859,169.27,169.25,60.0]
[1717078604619,2.1859,169.26,169.25,60.0]
[1717078605132,2.1861,169.25,169.24,60.0]
[1717078605832,2.1863,169.24,169.22,60.0]
[1717078606231,2.1863,169.23,169.22,60.0]
[1717078607237,2.1861,169.25,169.22,60.0]
[1717078607437,2.1863,169.23,169.22,60.0]
[1717078608241,2.1866,169.21,169.2,60.0]
[1717078608657,2.1863,169.23,169.22,60.0]
[1717078609449,2.1867,169.21,169.19,60.0]
[1717078609651,15.303,169.25,169.19,60.0]
[1717078609652,2.1867,169.2,169.19,60.0]
[1717078609861,2.1866,169.21,169.19,60.0]
[1717078610029,2.1865,169.22,169.21,60.0]
[1717078610556,4.372,169.26,169.23,60.0]
[1717078610929,2.1865,169.22,169.21,60.0]
[1717078614354,2.1867,169.2,169.19,60.0]
[1717078615138,2.1866,169.21,169.19,60.0]
[1717078616061,2.1865,169.22,169.19,60.0]
[1717078616456,2.1866,169.21,169.19,60.0]
[1717078616756,2.1864,169.23,169.21,60.0]
[1717078617341,2.1865,169.22,169.21,60.0]
[1717078618857,2.1867,169.2,169.19,60.0]
[1717078619235,2.1866,169.21,169.19,60.0]
[1717078620445,2.1867,169.2,169.19,60.0]
[1717078621162,2.1866,169.21,169.19,60.0]
[1717078621638,2.1867,169.2,169.19,60.0]
[1717078621837,2.1866,169.21,169.19,60.0]
[1717078622259,2.1867,169.2,169.19,60.0]
[1717078622654,10.9314,169.24,169.19,60.0]
[1717078622864,10.9314,169.24,169.21,60.0]
[1717078623360,2.1865,169.22,169.21,60.0]
[1717078624571,2.1865,169.22,169.18,2.187]
[1717078624752,48.87111434,169.32,169.19,60.0]
[1717078624753,2.1868,169.2,169.19,60.0]
[1717078628665,2.187,169.18,169.17,60.0]
[1717078628850,2.187,169.18,169.17,105.0]
[1717078629374,2.187,169.18,169.17,60.0]
[1717078629748,4.3731,169.22,169.19,60.0]
[1717078630152,2.1869,169.19,169.17,60.0]
[1717078630456,4.3731,169.22,169.18,105.0]
[1717078631271,2.1868,169.19,169.18,105.0]
[1717078632464,15.3055,169.22,169.17,60.0]
[1717078632667,2.1872,169.17,169.15,60.0]
[1717078632877,2.1872,169.16,169.15,60.0]
[1717078633076,2.1874,169.15,169.13,60.0]
[1717078633254,2.1873,169.16,169.15,60.0]
[1717078633442,2.1875,169.14,169.13,60.0]
[1717078633647,2.1874,169.15,169.13,60.0]
[1717078633846,2.1873,169.16,169.13,60.0]
[1717078634067,2.1871,169.17,169.15,60.0]
[1717078634572,2.1872,169.16,169.13,60.0]
[1717078634773,2.1872,169.16,169.15,60.0]
[1717078634981,2.1872,169.16,169.13,60.0]
[1717078635784,2.1871,169.17,169.15,60.0]
[1717078636163,2.1872,169.16,169.15,60.0]
[1717078636363,2.1871,169.17,169.15,60.0]
[1717078636674,2.1872,169.16,169.15,60.0]
[1717078637257,2.1872,169.17,169.15,60.0]
[1717078637651,2.1872,169.16,169.15,60.0]
[1717078638357,4.3737,169.2,169.15,60.0]
[1717078638358,2.1871,169.17,169.15,60.0]
[1717078642377,2.1872,169.16,169.15,60.0]
[1717078643766,2.187,169.18,169.17,60.0]
[1717078645873,2.1867,169.2,169.19,60.0]
[1717078646066,2.1865,169.22,169.21,60.0]
[1717078649178,2.1862,169.24,169.23,60.0]
[1717078649386,2.1865,169.22,169.21,60.0]
[1717078649758,2.1866,169.21,169.19,60.0]
[1717078649972,2.1859,169.27,169.24,60.0]
[1717078650165,2.1861,169.25,169.24,60.0]
[1717078651485,4.3712,169.29,169.23,60.0]
[1717078651486,4.3715,169.28,169.23,60.0]
[1717078651788,2.1862,169.24,169.23,60.0]
[1717078652490,2.1861,169.25,169.23,60.0]
[1717078652876,4.3715,169.28,169.23,60.0]
[1717078652877,2.1862,169.24,169.23,60.0]
[1717078655687,8.7437,169.27,169.2,60.0]
[1717078655992,2.1866,169.21,169.2,60.0]
[1717078656364,2.1865,169.22,169.2,60.0]
[1717078657899,2.1863,169.23,169.22,60.0]
[1717078658274,2.1862,169.24,169.2,60.0]
[1717078658594,2.1862,169.24,169.22,60.0]
[1717078659096,2.1863,169.23,169.22,60.0]
[1717078660975,2.1865,169.22,169.2,60.0]
[1717078661884,2.1866,169.21,169.2,60.0]
[1717078662084,2.1866,169.21,169.18,60.0]
[1717078662397,2.1867,169.21,169.18,60.0]
[1717078663500,4.3724,169.25,169.18,60.0]
[1717078663682,8.7442,169.31,169.26,60.0]
[1717078663877,8.7442,169.31,169.16,53.44]
[1717078663878,8.7442,169.31,169.29,60.0]
[1717078664120,8.7442,169.31,169.3,2.1854]
[1717078664327,8.7442,169.31,169.3,22.1854]
[1717078664606,0.8250969,169.37,169.32,62.1852]
[1717078664788,0.8250969,169.37,169.32,60.0]
[1717078664997,0.8250969,169.37,169.36,60.0]
[1717078666314,0.8250969,169.37,169.24,60.0]
[1717078666491,4.3702,169.33,169.22,60.0]
[1717078666681,4.371,169.3,169.22,60.0]
[1717078666878,4.3712,169.29,169.2,60.0]
[1717078667282,2.1862,169.24,169.22,60.0]
[1717078667706,10.510901,169.3,169.24,60.0]
[1717078668007,10.510901,169.3,169.22,60.0]
[1717078668193,10.510901,169.3,169.21,60.0]
[1717078668536,2.1862,169.24,169.21,60.0]
[1717078668808,10.510902,169.31,169.25,60.0]
[1717078669017,2.1858,169.27,169.23,60.0]
[1717078669308,10.510902,169.31,169.17,17.77]
[1717078669309,2.1862,169.24,169.21,60.0]
[1717078669990,2.1862,169.24,169.23,60.0]
[1717078670200,2.186,169.26,169.25,60.0]
[1717078670814,2.186,169.26,169.18,19.9569]